[Event "Early-Titled-Tuesday-Blitz-March-26-2024"]
[Site "Chess.com"]
[Date "2024.03.26"]
[Round "6"]
[White "Szparu"]
[Black "wonderfultime"]
[Result "0-1"]
[WhiteElo "2810"]
[BlackElo "3003"]
[TimeControl "180+1"]
[EndTime "9:05:49 PDT"]
[Termination "wonderfultime won by resignation"]

1. Nf3 {[%clk 0:02:35.4]} 1... d5 {[%clk 0:02:58.9]} 2. d4 {[%clk 0:02:34.2]}
2... Nf6 {[%clk 0:02:58.8]} 3. c4 {[%clk 0:02:33.7]} 3... c6 {[%clk 0:02:59.1]}
4. e3 {[%clk 0:02:33.4]} 4... a6 {[%clk 0:02:56.7]} 5. Nc3 {[%clk 0:02:25]} 5...
Bf5 {[%clk 0:02:56.7]} 6. Nh4 {[%clk 0:02:21.1]} 6... Be4 {[%clk 0:02:55.8]} 7.
f3 {[%clk 0:02:20.5]} 7... Bg6 {[%clk 0:02:56.3]} 8. g3 {[%clk 0:02:14.9]} 8...
e6 {[%clk 0:02:54.8]} 9. Bd2 {[%clk 0:02:11.5]} 9... dxc4 {[%clk 0:02:45.8]} 10.
Bxc4 {[%clk 0:02:10]} 10... b5 {[%clk 0:02:46.3]} 11. Bf1 {[%clk 0:01:59]} 11...
c5 {[%clk 0:02:45.6]} 12. Nxg6 {[%clk 0:01:52]} 12... hxg6 {[%clk 0:02:43]} 13.
dxc5 {[%clk 0:01:46.6]} 13... Bxc5 {[%clk 0:02:43.9]} 14. Qe2 {[%clk 0:01:44.1]}
14... Ra7 {[%clk 0:02:14.6]} 15. g4 {[%clk 0:01:42.7]} 15... Rd7 {[%clk
0:02:10.6]} 16. g5 {[%clk 0:01:41.6]} 16... Nd5 {[%clk 0:02:03.2]} 17. Ne4
{[%clk 0:01:41.8]} 17... Be7 {[%clk 0:01:50.1]} 18. f4 {[%clk 0:01:41.5]} 18...
Bb4 {[%clk 0:01:26.2]} 19. O-O-O {[%clk 0:01:20.7]} 19... Bxd2+ {[%clk
0:01:16.8]} 20. Rxd2 {[%clk 0:01:21.6]} 20... O-O {[%clk 0:01:17.4]} 21. h4
{[%clk 0:01:10.4]} 21... Qb6 {[%clk 0:01:17.6]} 22. Rh3 {[%clk 0:01:02.3]} 22...
Rc8+ {[%clk 0:01:16.3]} 23. Kd1 {[%clk 0:00:50.6]} 23... Qc6 {[%clk 0:01:09.7]}
24. Ke1 {[%clk 0:00:50.9]} 24... Nb4 {[%clk 0:00:56.4]} 25. Nc3 {[%clk
0:00:37.3]} 25... Rcd8 {[%clk 0:00:45.9]} 26. Rxd7 {[%clk 0:00:35.1]} 26... Nxd7
{[%clk 0:00:46.8]} 27. a3 {[%clk 0:00:32.5]} 27... Nd5 {[%clk 0:00:42.3]} 28.
Nxd5 {[%clk 0:00:32.5]} 28... Qxd5 {[%clk 0:00:34.5]} 29. h5 {[%clk 0:00:17.6]}
29... Nc5 {[%clk 0:00:32.4]} 30. hxg6 {[%clk 0:00:14.4]} 30... fxg6 {[%clk
0:00:32.8]} 31. Kf2 {[%clk 0:00:07.2]} 31... Qf5 {[%clk 0:00:23.6]} 32. Kg1
{[%clk 0:00:06.4]} 32... Qb1 {[%clk 0:00:23.4]} 33. Rh2 {[%clk 0:00:03.8]} 33...
Rd1 {[%clk 0:00:22.8]} 34. Rf2 {[%clk 0:00:02.1]} 34... Ne4 {[%clk 0:00:21.2]}
35. Rf3 {[%clk 0:00:02.5]} 35... Nd2 {[%clk 0:00:21.5]} 36. Rf2 {[%clk
0:00:02.4]} 36... Ne4 {[%clk 0:00:15.8]} 37. Rg2 {[%clk 0:00:02.6]} 37... Qc1
{[%clk 0:00:06]} 38. Qf3 {[%clk 0:00:02.1]} 38... Qb1 {[%clk 0:00:04.9]} 39. Qe2
{[%clk 0:00:02.5]} 39... Kf7 {[%clk 0:00:04.3]} 40. Qf3 {[%clk 0:00:01.8]} 40...
Ke7 {[%clk 0:00:04.6]} 41. Qe2 {[%clk 0:00:01.6]} 41... Nd2 {[%clk 0:00:04.5]}
42. Rf2 {[%clk 0:00:01.5]} 42... Kd6 {[%clk 0:00:04.7]} 43. e4 {[%clk
0:00:01.6]} 43... Rxf1+ {[%clk 0:00:03.5]} 44. Rxf1 {[%clk 0:00:01.9]} 44...
Qxf1+ {[%clk 0:00:04.3]} 45. Qxf1 {[%clk 0:00:02.6]} 45... Nxf1 {[%clk
0:00:05.2]} 46. Kxf1 {[%clk 0:00:03.5]} 46... Kc5 {[%clk 0:00:06.1]} 47. Ke2
{[%clk 0:00:03.9]} 47... Kd4 {[%clk 0:00:06.8]} 48. Kf3 {[%clk 0:00:04.5]} 48...
a5 {[%clk 0:00:06.2]} 49. f5 {[%clk 0:00:03.9]} 49... exf5 {[%clk 0:00:04.3]}
50. exf5 {[%clk 0:00:04.5]} 50... gxf5 {[%clk 0:00:05.1]} 51. g6 {[%clk
0:00:03.2]} 51... Ke5 {[%clk 0:00:05.1]} 52. Ke3 {[%clk 0:00:03.6]} 52... a4
{[%clk 0:00:04.5]} 53. Kf3 {[%clk 0:00:03.8]} 53... Kf6 {[%clk 0:00:04.8]} 54.
Kf4 {[%clk 0:00:04.1]} 54... Kxg6 {[%clk 0:00:05.4]} 55. Ke5 {[%clk 0:00:04.5]}
55... Kg5 {[%clk 0:00:06.2]} 56. Kd5 {[%clk 0:00:05.1]} 56... f4 {[%clk
0:00:07]} 57. Kc5 {[%clk 0:00:05.8]} 57... f3 {[%clk 0:00:07.2]} 58. Kxb5 {[%clk
0:00:06.7]} 58... f2 {[%clk 0:00:07.9]} 59. Kxa4 {[%clk 0:00:07.6]} 59... f1=Q
{[%clk 0:00:08.6]} 0-1

[Event "Early-Titled-Tuesday-Blitz-March-26-2024"]
[Site "Chess.com"]
[Date "2024.03.26"]
[Round "6"]
[White "esrosenberg"]
[Black "Yeritsyaan"]
[Result "1-0"]
[WhiteElo "2503"]
[BlackElo "2662"]
[TimeControl "180+1"]
[EndTime "9:05:52 PDT"]
[Termination "esrosenberg won by resignation"]

1. d4 {[%clk 0:03:00.9]} 1... f5 {[%clk 0:02:56.3]} 2. Bg5 {[%clk 0:02:59.6]}
2... Nf6 {[%clk 0:02:53.2]} 3. Bxf6 {[%clk 0:02:59.5]} 3... exf6 {[%clk
0:02:52.7]} 4. e3 {[%clk 0:02:58.3]} 4... d5 {[%clk 0:02:51.8]} 5. c4 {[%clk
0:02:57.1]} 5... c6 {[%clk 0:02:51]} 6. Nc3 {[%clk 0:02:56.6]} 6... Be6 {[%clk
0:02:50.9]} 7. Qb3 {[%clk 0:02:51.2]} 7... Qb6 {[%clk 0:02:37.3]} 8. Qxb6 {[%clk
0:02:48.9]} 8... axb6 {[%clk 0:02:38.2]} 9. cxd5 {[%clk 0:02:49.6]} 9... cxd5
{[%clk 0:02:39.1]} 10. Bb5+ {[%clk 0:02:47.2]} 10... Nc6 {[%clk 0:02:38.9]} 11.
Nge2 {[%clk 0:02:47.8]} 11... Bd6 {[%clk 0:02:38.8]} 12. g3 {[%clk 0:02:46]}
12... g5 {[%clk 0:02:34.5]} 13. Kd2 {[%clk 0:02:30.7]} 13... Ke7 {[%clk
0:02:34.1]} 14. Rhc1 {[%clk 0:02:28.1]} 14... Rhc8 {[%clk 0:02:32.7]} 15. Na4
{[%clk 0:02:06.5]} 15... Na7 {[%clk 0:02:11]} 16. Bd3 {[%clk 0:01:49.3]} 16...
b5 {[%clk 0:02:04.6]} 17. Nb6 {[%clk 0:01:33.9]} 17... Rxc1 {[%clk 0:02:01.5]}
18. Rxc1 {[%clk 0:01:34.8]} 18... Rd8 {[%clk 0:02:00.9]} 19. a4 {[%clk
0:01:14.1]} 19... bxa4 {[%clk 0:01:42.7]} 20. Nxa4 {[%clk 0:01:12.3]} 20... Rc8
{[%clk 0:01:37.7]} 21. Rxc8 {[%clk 0:01:09.8]} 21... Bxc8 {[%clk 0:01:34.3]} 22.
Nb6 {[%clk 0:01:06.2]} 22... Be6 {[%clk 0:01:33.6]} 23. Nc3 {[%clk 0:01:05.4]}
23... Bb4 {[%clk 0:01:32.1]} 24. Kc2 {[%clk 0:01:05]} 24... Kd6 {[%clk
0:01:31.1]} 25. Kb3 {[%clk 0:01:00]} 25... Ba5 {[%clk 0:01:30.1]} 26. Nba4
{[%clk 0:00:49.1]} 26... b6 {[%clk 0:01:13.8]} 27. Kc2 {[%clk 0:00:39.9]} 27...
h5 {[%clk 0:01:11.6]} 28. h4 {[%clk 0:00:35.9]} 28... Nc6 {[%clk 0:01:06.8]} 29.
Nb5+ {[%clk 0:00:31]} 29... Kd7 {[%clk 0:01:03.5]} 30. Be2 {[%clk 0:00:26.8]}
30... Bf7 {[%clk 0:01:01]} 31. Nac3 {[%clk 0:00:21.4]} 31... Ne7 {[%clk
0:00:54.4]} 32. Bf3 {[%clk 0:00:20.1]} 32... Kc6 {[%clk 0:00:51.1]} 33. Na7+
{[%clk 0:00:18.3]} 33... Kd7 {[%clk 0:00:47.8]} 34. Nab5 {[%clk 0:00:18.8]}
34... Bb4 {[%clk 0:00:12.5]} 35. Kd3 {[%clk 0:00:18.6]} 35... Bg6 {[%clk
0:00:09.9]} 36. Nxd5 {[%clk 0:00:14.6]} 36... f4+ {[%clk 0:00:08.4]} 37. Kc4
{[%clk 0:00:12.6]} 37... Nxd5 {[%clk 0:00:06.5]} 38. Bxd5 {[%clk 0:00:11.9]}
38... Be1 {[%clk 0:00:07.2]} 39. exf4 {[%clk 0:00:10.9]} 39... gxh4 {[%clk
0:00:06.8]} 40. gxh4 {[%clk 0:00:09.4]} 40... Bxf2 {[%clk 0:00:07.6]} 41. Nc3
{[%clk 0:00:08.1]} 41... Bxh4 {[%clk 0:00:08]} 42. Kb5 {[%clk 0:00:07.8]} 42...
Kc7 {[%clk 0:00:06.8]} 43. Bf3 {[%clk 0:00:06]} 43... Be8+ {[%clk 0:00:06.4]}
44. Kc4 {[%clk 0:00:05.6]} 44... Bf2 {[%clk 0:00:06.6]} 45. Nd5+ {[%clk
0:00:05.3]} 45... Kd6 {[%clk 0:00:07.3]} 46. Nxf6 {[%clk 0:00:05.4]} 46... Bf7+
{[%clk 0:00:07.6]} 47. d5 {[%clk 0:00:04.7]} 47... h4 {[%clk 0:00:08.1]} 48.
Ne4+ {[%clk 0:00:03.6]} 48... Ke7 {[%clk 0:00:08.5]} 49. Nxf2 {[%clk 0:00:04.3]}
49... Kf6 {[%clk 0:00:08.6]} 50. Nh3 {[%clk 0:00:04.4]} 50... Kf5 {[%clk
0:00:08.4]} 51. Kb5 {[%clk 0:00:04.9]} 51... Kf6 {[%clk 0:00:03.8]} 52. Kxb6
{[%clk 0:00:05.1]} 52... Be8 {[%clk 0:00:04.7]} 53. Kc7 {[%clk 0:00:05.1]} 53...
Ke7 {[%clk 0:00:05.1]} 54. d6+ {[%clk 0:00:05.3]} 54... Ke6 {[%clk 0:00:05.8]}
55. Bg4+ {[%clk 0:00:05.3]} 55... Kd5 {[%clk 0:00:05.5]} 56. d7 {[%clk
0:00:05.5]} 56... Bxd7 {[%clk 0:00:06.2]} 57. Kxd7 {[%clk 0:00:05.9]} 57... Ke4
{[%clk 0:00:07.1]} 58. f5 {[%clk 0:00:06.4]} 58... Ke5 {[%clk 0:00:07.5]} 59. b4
{[%clk 0:00:06.7]} 59... Kf6 {[%clk 0:00:08.4]} 60. b5 {[%clk 0:00:07.2]} 60...
Ke5 {[%clk 0:00:09.3]} 61. b6 {[%clk 0:00:07.8]} 61... Kf6 {[%clk 0:00:10.2]}
62. b7 {[%clk 0:00:08.3]} 1-0

[Event "Early-Titled-Tuesday-Blitz-March-26-2024"]
[Site "Chess.com"]
[Date "2024.03.26"]
[Round "6"]
[White "AlexanderKing"]
[Black "a-z30"]
[Result "1-0"]
[WhiteElo "2654"]
[BlackElo "2436"]
[TimeControl "180+1"]
[EndTime "9:05:52 PDT"]
[Termination "AlexanderKing won by resignation"]

1. c4 {[%clk 0:03:00.9]} 1... d6 {[%clk 0:03:00.9]} 2. Nf3 {[%clk 0:03:00.4]}
2... Nf6 {[%clk 0:03:01.8]} 3. Nc3 {[%clk 0:03:00.2]} 3... g6 {[%clk 0:03:02.7]}
4. g3 {[%clk 0:03:00.2]} 4... Bg7 {[%clk 0:03:03.6]} 5. Bg2 {[%clk 0:03:01.1]}
5... O-O {[%clk 0:03:03.6]} 6. O-O {[%clk 0:03:02]} 6... c5 {[%clk 0:02:59.9]}
7. d4 {[%clk 0:03:01.2]} 7... Nc6 {[%clk 0:03:00.4]} 8. dxc5 {[%clk 0:03:00.7]}
8... dxc5 {[%clk 0:03:00.8]} 9. Bf4 {[%clk 0:03:01.4]} 9... Bf5 {[%clk
0:02:55.7]} 10. Ne5 {[%clk 0:02:58.6]} 10... Nxe5 {[%clk 0:02:48.6]} 11. Bxe5
{[%clk 0:02:59.5]} 11... Qb6 {[%clk 0:02:41.3]} 12. Qb3 {[%clk 0:02:59.3]} 12...
Qe6 {[%clk 0:02:07.2]} 13. Bxf6 {[%clk 0:02:58.8]} 13... Bxf6 {[%clk 0:02:02.1]}
14. Nd5 {[%clk 0:02:31.3]} 14... Rab8 {[%clk 0:01:54.3]} 15. e4 {[%clk
0:02:22.8]} 15... Bxe4 {[%clk 0:01:43.3]} 16. Nxf6+ {[%clk 0:02:10.1]} 16...
exf6 {[%clk 0:01:36.7]} 17. Rfe1 {[%clk 0:02:10.2]} 17... f5 {[%clk 0:01:09.5]}
18. f3 {[%clk 0:02:09.8]} 18... b5 {[%clk 0:01:07]} 19. fxe4 {[%clk 0:02:05.4]}
19... bxc4 {[%clk 0:00:43.8]} 20. Qc3 {[%clk 0:02:04.8]} 20... fxe4 {[%clk
0:00:43.5]} 21. Rxe4 {[%clk 0:02:03.1]} 21... Qb6 {[%clk 0:00:42.4]} 22. Rxc4
{[%clk 0:02:03.2]} 22... Qxb2 {[%clk 0:00:29.3]} 23. Qxb2 {[%clk 0:01:38.2]}
23... Rxb2 {[%clk 0:00:30.2]} 24. Rxc5 {[%clk 0:01:39]} 24... Rd8 {[%clk
0:00:25.9]} 25. Bd5 {[%clk 0:01:18.9]} 25... Rd2 {[%clk 0:00:16.9]} 26. Bb3
{[%clk 0:01:16.4]} 26... R8d7 {[%clk 0:00:16.5]} 27. Rf1 {[%clk 0:01:13.8]}
27... Kg7 {[%clk 0:00:16.5]} 28. Rc6 {[%clk 0:01:00.7]} 28... f5 {[%clk
0:00:16.1]} 29. Rf2 {[%clk 0:00:57.2]} 29... Rxf2 {[%clk 0:00:14.3]} 30. Kxf2
{[%clk 0:00:58.1]} 30... Rd2+ {[%clk 0:00:13.9]} 31. Kg1 {[%clk 0:00:56.5]}
31... a5 {[%clk 0:00:10]} 32. Ra6 {[%clk 0:00:55.3]} 32... h5 {[%clk 0:00:09.5]}
33. h4 {[%clk 0:00:52.6]} 33... Rd3 {[%clk 0:00:08]} 34. Kf2 {[%clk 0:00:49.9]}
34... Rd2+ {[%clk 0:00:08]} 35. Ke3 {[%clk 0:00:50.2]} 35... Rg2 {[%clk
0:00:07.7]} 36. Kf3 {[%clk 0:00:50.2]} 36... Rd2 {[%clk 0:00:07.6]} 37. Rxa5
{[%clk 0:00:50.6]} 37... Kh6 {[%clk 0:00:07.2]} 38. Ra6 {[%clk 0:00:48.7]} 38...
Rd3+ {[%clk 0:00:07]} 39. Kf2 {[%clk 0:00:47.8]} 39... Rd4 {[%clk 0:00:05.1]}
40. Bf7 {[%clk 0:00:42.7]} 40... f4 {[%clk 0:00:05]} 41. Rxg6+ {[%clk
0:00:26.5]} 41... Kh7 {[%clk 0:00:04.6]} 42. Rg5 {[%clk 0:00:27.4]} 42... fxg3+
{[%clk 0:00:04.1]} 43. Kxg3 {[%clk 0:00:28.3]} 43... Rd3+ {[%clk 0:00:03.2]} 44.
Kf2 {[%clk 0:00:25.8]} 44... Rd7 {[%clk 0:00:03]} 45. Rxh5+ {[%clk 0:00:13.5]}
45... Kg7 {[%clk 0:00:03.9]} 46. Bb3 {[%clk 0:00:14.3]} 46... Rd2+ {[%clk
0:00:03.8]} 47. Ke3 {[%clk 0:00:14.3]} 47... Rh2 {[%clk 0:00:03.8]} 48. Kf4
{[%clk 0:00:14.3]} 48... Rf2+ {[%clk 0:00:03.6]} 49. Kg3 {[%clk 0:00:14.6]}
49... Rf1 {[%clk 0:00:04.5]} 50. Ra5 {[%clk 0:00:14.4]} 50... Kg6 {[%clk
0:00:04.9]} 51. Ra6+ {[%clk 0:00:13.2]} 51... Kh5 {[%clk 0:00:04.2]} 52. Ra5+
{[%clk 0:00:13.6]} 52... Kh6 {[%clk 0:00:04]} 53. h5 {[%clk 0:00:10.3]} 53...
Rc1 {[%clk 0:00:04.4]} 54. Kf2 {[%clk 0:00:09.7]} 54... Rc3 {[%clk 0:00:04.1]}
55. Ke2 {[%clk 0:00:09.8]} 55... Rh3 {[%clk 0:00:04.1]} 56. Kd2 {[%clk
0:00:10.2]} 56... Kg7 {[%clk 0:00:04.4]} 57. Kc2 {[%clk 0:00:09.8]} 57... Kf8
{[%clk 0:00:02.8]} 58. Kb2 {[%clk 0:00:09.7]} 58... Ke7 {[%clk 0:00:03.3]} 59.
Rd5 {[%clk 0:00:09.8]} 59... Kf6 {[%clk 0:00:02]} 60. a4 {[%clk 0:00:09.6]}
60... Rh2+ {[%clk 0:00:02.3]} 61. Ka3 {[%clk 0:00:09.7]} 61... Rh4 {[%clk
0:00:03.2]} 62. a5 {[%clk 0:00:09.9]} 62... Ke7 {[%clk 0:00:02.9]} 63. a6 {[%clk
0:00:09.6]} 63... Rf4 {[%clk 0:00:02.4]} 64. a7 {[%clk 0:00:09.5]} 64... Rf8
{[%clk 0:00:03.3]} 65. Ra5 {[%clk 0:00:08.5]} 65... Ra8 {[%clk 0:00:02.4]} 1-0

[Event "Early-Titled-Tuesday-Blitz-March-26-2024"]
[Site "Chess.com"]
[Date "2024.03.26"]
[Round "6"]
[White "MikeSailer"]
[Black "sorch29"]
[Result "1/2-1/2"]
[WhiteElo "2097"]
[BlackElo "2455"]
[TimeControl "180+1"]
[EndTime "9:05:52 PDT"]
[Termination "Game drawn - insufficient material"]

1. d4 {[%clk 0:02:59.1]} 1... Nf6 {[%clk 0:02:55.7]} 2. Nf3 {[%clk 0:02:59.1]}
2... g6 {[%clk 0:02:55.9]} 3. Bf4 {[%clk 0:02:59.3]} 3... Bg7 {[%clk 0:02:56.2]}
4. e3 {[%clk 0:03:00.2]} 4... O-O {[%clk 0:02:56.6]} 5. Be2 {[%clk 0:03:01.1]}
5... d6 {[%clk 0:02:57.2]} 6. O-O {[%clk 0:03:01.8]} 6... Nc6 {[%clk 0:02:58]}
7. h3 {[%clk 0:03:02.5]} 7... Nd7 {[%clk 0:02:58.2]} 8. c4 {[%clk 0:03:02.9]}
8... e5 {[%clk 0:02:58.5]} 9. Bh2 {[%clk 0:03:03.5]} 9... f5 {[%clk 0:02:56.5]}
10. Nc3 {[%clk 0:03:04]} 10... Kh8 {[%clk 0:02:55.5]} 11. Rb1 {[%clk 0:03:03.4]}
11... h6 {[%clk 0:01:59.7]} 12. b4 {[%clk 0:03:02.4]} 12... g5 {[%clk
0:01:51.5]} 13. b5 {[%clk 0:03:02.8]} 13... Ne7 {[%clk 0:01:51.3]} 14. a4 {[%clk
0:03:03.1]} 14... f4 {[%clk 0:01:49.6]} 15. a5 {[%clk 0:02:45.2]} 15... Nf5
{[%clk 0:01:44]} 16. dxe5 {[%clk 0:02:39.3]} 16... Nxe5 {[%clk 0:01:42.4]} 17.
Nxe5 {[%clk 0:02:39.3]} 17... dxe5 {[%clk 0:01:35.1]} 18. exf4 {[%clk
0:02:23.6]} 18... exf4 {[%clk 0:01:33.6]} 19. Qxd8 {[%clk 0:02:10.7]} 19... Rxd8
{[%clk 0:01:33.8]} 20. Nd5 {[%clk 0:02:10.8]} 20... c6 {[%clk 0:01:33.2]} 21.
Nc7 {[%clk 0:02:10.7]} 21... Bd7 {[%clk 0:01:17.3]} 22. Nxa8 {[%clk 0:02:10.1]}
22... Rxa8 {[%clk 0:01:18.2]} 23. Bg4 {[%clk 0:02:03.8]} 23... c5 {[%clk
0:01:05.8]} 24. Rbd1 {[%clk 0:01:50.9]} 24... Bd4 {[%clk 0:01:05.7]} 25. Kh1
{[%clk 0:01:38.7]} 25... Rd8 {[%clk 0:00:57.2]} 26. f3 {[%clk 0:01:38.1]} 26...
Nd6 {[%clk 0:00:55.3]} 27. Bxd7 {[%clk 0:01:37.2]} 27... Rxd7 {[%clk 0:00:56.2]}
28. Rc1 {[%clk 0:01:27.8]} 28... Nf5 {[%clk 0:00:54.2]} 29. Rfe1 {[%clk
0:01:24.3]} 29... Ne3 {[%clk 0:00:40.2]} 30. Bg1 {[%clk 0:01:20.8]} 30... Kg7
{[%clk 0:00:39.9]} 31. Bxe3 {[%clk 0:01:15.4]} 31... fxe3 {[%clk 0:00:39.2]} 32.
Re2 {[%clk 0:01:10]} 32... Kf6 {[%clk 0:00:38.8]} 33. Kg1 {[%clk 0:01:10.4]}
33... Kf5 {[%clk 0:00:37.9]} 34. Kf1 {[%clk 0:01:10.9]} 34... Kf4 {[%clk
0:00:37.9]} 35. Rd1 {[%clk 0:01:07.2]} 35... h5 {[%clk 0:00:35.1]} 36. a6 {[%clk
0:00:52.5]} 36... bxa6 {[%clk 0:00:33.9]} 37. bxa6 {[%clk 0:00:52.7]} 37... Rd6
{[%clk 0:00:34.2]} 38. Ra2 {[%clk 0:00:49]} 38... Rb6 {[%clk 0:00:32.4]} 39. Ke2
{[%clk 0:00:46.2]} 39... Kg3 {[%clk 0:00:31.1]} 40. Kd3 {[%clk 0:00:36.3]} 40...
Rb3+ {[%clk 0:00:29]} 41. Ke4 {[%clk 0:00:35.6]} 41... Bb2 {[%clk 0:00:15.2]}
42. Re1 {[%clk 0:00:29.1]} 42... Kf2 {[%clk 0:00:14.7]} 43. Rxb2+ {[%clk
0:00:24.1]} 43... Rxb2 {[%clk 0:00:14.3]} 44. Rxe3 {[%clk 0:00:24.6]} 44... Rb6
{[%clk 0:00:07.3]} 45. Rd3 {[%clk 0:00:19.1]} 45... Rxa6 {[%clk 0:00:07.4]} 46.
Rd2+ {[%clk 0:00:19]} 46... Kg3 {[%clk 0:00:07.2]} 47. Kf5 {[%clk 0:00:15.9]}
47... Kh4 {[%clk 0:00:05.7]} 48. g3+ {[%clk 0:00:11.6]} 48... Kxh3 {[%clk
0:00:03]} 49. Kxg5 {[%clk 0:00:12.2]} 49... Kxg3 {[%clk 0:00:03.6]} 50. Kxh5
{[%clk 0:00:12.7]} 50... Kxf3 {[%clk 0:00:03.6]} 51. Kg5 {[%clk 0:00:13.3]}
51... Ke3 {[%clk 0:00:03.8]} 52. Rh2 {[%clk 0:00:11.4]} 52... Kd4 {[%clk
0:00:03.4]} 53. Rh4+ {[%clk 0:00:10.6]} 53... Kc3 {[%clk 0:00:03.9]} 54. Kf5
{[%clk 0:00:10.7]} 54... Rd6 {[%clk 0:00:04.5]} 55. Ke5 {[%clk 0:00:10.8]} 55...
Rd4 {[%clk 0:00:05.1]} 56. Rxd4 {[%clk 0:00:10.2]} 56... cxd4 {[%clk 0:00:05]}
57. c5 {[%clk 0:00:10.9]} 57... d3 {[%clk 0:00:05.6]} 58. c6 {[%clk 0:00:11.8]}
58... d2 {[%clk 0:00:06.1]} 59. c7 {[%clk 0:00:12.7]} 59... d1=Q {[%clk
0:00:06.6]} 60. c8=Q+ {[%clk 0:00:13.6]} 60... Kd2 {[%clk 0:00:06.7]} 61. Qd7+
{[%clk 0:00:13.1]} 61... Ke1 {[%clk 0:00:07]} 62. Qxd1+ {[%clk 0:00:12.8]} 62...
Kxd1 {[%clk 0:00:07.9]} 63. Kd5 {[%clk 0:00:13.7]} 63... a5 {[%clk 0:00:08.2]}
64. Kc4 {[%clk 0:00:14.1]} 64... a4 {[%clk 0:00:09.1]} 65. Kb4 {[%clk
0:00:14.7]} 65... a3 {[%clk 0:00:10]} 66. Kxa3 {[%clk 0:00:15.4]} 1/2-1/2

[Event "Early-Titled-Tuesday-Blitz-March-26-2024"]
[Site "Chess.com"]
[Date "2024.03.26"]
[Round "6"]
[White "Angry_Twin"]
[Black "vasblesk"]
[Result "1-0"]
[WhiteElo "2917"]
[BlackElo "2787"]
[TimeControl "180+1"]
[EndTime "9:05:54 PDT"]
[Termination "Angry_Twin won by resignation"]

1. e4 {[%clk 0:03:00.3]} 1... e5 {[%clk 0:02:59.5]} 2. Nf3 {[%clk 0:02:59.9]}
2... Nf6 {[%clk 0:03:00.2]} 3. Nxe5 {[%clk 0:02:59.5]} 3... d6 {[%clk
0:03:00.4]} 4. Nf3 {[%clk 0:03:00.2]} 4... Nxe4 {[%clk 0:03:00.3]} 5. d4 {[%clk
0:03:00.7]} 5... d5 {[%clk 0:03:00.5]} 6. Bd3 {[%clk 0:03:01.4]} 6... Bd6 {[%clk
0:02:55.7]} 7. O-O {[%clk 0:03:01.2]} 7... O-O {[%clk 0:02:55.6]} 8. c4 {[%clk
0:03:01.8]} 8... c6 {[%clk 0:02:54.3]} 9. Qc2 {[%clk 0:03:01.5]} 9... h6 {[%clk
0:02:53]} 10. c5 {[%clk 0:02:56]} 10... Bc7 {[%clk 0:02:50.1]} 11. Nc3 {[%clk
0:02:56.7]} 11... Nxc3 {[%clk 0:02:42.9]} 12. bxc3 {[%clk 0:02:56.1]} 12... Re8
{[%clk 0:02:43.4]} 13. Be3 {[%clk 0:02:53.6]} 13... Nd7 {[%clk 0:02:42.4]} 14.
h3 {[%clk 0:02:39.2]} 14... Nf6 {[%clk 0:02:41.2]} 15. Rae1 {[%clk 0:02:38.9]}
15... b6 {[%clk 0:02:34.7]} 16. Bd2 {[%clk 0:02:32.2]} 16... bxc5 {[%clk
0:02:27.3]} 17. dxc5 {[%clk 0:02:31.5]} 17... Nd7 {[%clk 0:02:24]} 18. Be3
{[%clk 0:02:22.4]} 18... Nf8 {[%clk 0:02:18.5]} 19. Bd4 {[%clk 0:02:20.6]} 19...
Ne6 {[%clk 0:02:14.1]} 20. Bf5 {[%clk 0:02:15.7]} 20... Nxd4 {[%clk 0:02:11.5]}
21. Nxd4 {[%clk 0:02:12.1]} 21... Bd7 {[%clk 0:01:45.1]} 22. Qa4 {[%clk
0:01:44.1]} 22... Bxf5 {[%clk 0:01:30.7]} 23. Nxf5 {[%clk 0:01:44]} 23... Qd7
{[%clk 0:01:30.3]} 24. Nd4 {[%clk 0:01:41]} 24... Rxe1 {[%clk 0:01:28.1]} 25.
Rxe1 {[%clk 0:01:41]} 25... Re8 {[%clk 0:01:19.2]} 26. Rb1 {[%clk 0:01:11.9]}
26... Rc8 {[%clk 0:01:06.2]} 27. Qa6 {[%clk 0:00:56]} 27... Be5 {[%clk
0:01:00.6]} 28. Rb7 {[%clk 0:00:54]} 28... Qe8 {[%clk 0:01:00.2]} 29. Rxa7
{[%clk 0:00:46.4]} 29... Bxd4 {[%clk 0:00:31.7]} 30. cxd4 {[%clk 0:00:44.9]}
30... Qe1+ {[%clk 0:00:29.8]} 31. Kh2 {[%clk 0:00:43.4]} 31... Qe6 {[%clk
0:00:23.2]} 32. Ra8 {[%clk 0:00:33.4]} 32... Rxa8 {[%clk 0:00:21.6]} 33. Qxa8+
{[%clk 0:00:34.3]} 33... Kh7 {[%clk 0:00:22.3]} 34. Qa3 {[%clk 0:00:33.7]} 34...
Qf5 {[%clk 0:00:18.4]} 35. Qe3 {[%clk 0:00:33.3]} 35... Qc2 {[%clk 0:00:17.6]}
36. a3 {[%clk 0:00:33.4]} 36... Qa4 {[%clk 0:00:16.7]} 37. Qd3+ {[%clk
0:00:33.1]} 37... g6 {[%clk 0:00:16]} 38. Qc3 {[%clk 0:00:33]} 38... Kg7 {[%clk
0:00:16.2]} 39. Qe3 {[%clk 0:00:29.5]} 39... Qc2 {[%clk 0:00:15.7]} 40. Qe5+
{[%clk 0:00:28.8]} 40... Kg8 {[%clk 0:00:15.8]} 41. Qe8+ {[%clk 0:00:28.2]}
41... Kg7 {[%clk 0:00:16.4]} 42. Qe5+ {[%clk 0:00:16.7]} 42... Kg8 {[%clk
0:00:15.6]} 43. Qf6 {[%clk 0:00:16.5]} 43... Qa4 {[%clk 0:00:14.3]} 44. h4
{[%clk 0:00:14.6]} 44... h5 {[%clk 0:00:13.8]} 45. f3 {[%clk 0:00:13.7]} 45...
Qa8 {[%clk 0:00:09.6]} 46. Kg3 {[%clk 0:00:12.4]} 46... Qb8+ {[%clk 0:00:09]}
47. Qe5 {[%clk 0:00:11.9]} 47... Qa8 {[%clk 0:00:08.8]} 48. Kf4 {[%clk
0:00:10.8]} 48... Qxa3 {[%clk 0:00:04.7]} 49. Qe8+ {[%clk 0:00:10.3]} 49... Kg7
{[%clk 0:00:04.5]} 50. Qxc6 {[%clk 0:00:10.4]} 50... Qc1+ {[%clk 0:00:04.4]} 51.
Ke5 {[%clk 0:00:07.6]} 51... Qe1+ {[%clk 0:00:05]} 52. Kxd5 {[%clk 0:00:07.1]}
52... Qxh4 {[%clk 0:00:05.9]} 53. Qd6 {[%clk 0:00:06.8]} 53... Qf2 {[%clk
0:00:05.1]} 54. c6 {[%clk 0:00:06.7]} 54... Qxg2 {[%clk 0:00:04.6]} 55. Qe5+
{[%clk 0:00:05.7]} 55... Kg8 {[%clk 0:00:03.9]} 56. c7 {[%clk 0:00:06]} 56...
Qxf3+ {[%clk 0:00:04.5]} 57. Kd6 {[%clk 0:00:06.7]} 57... Qa3+ {[%clk
0:00:04.3]} 58. Kd7 {[%clk 0:00:06.8]} 58... Qa4+ {[%clk 0:00:04.2]} 59. Kd8
{[%clk 0:00:05.6]} 59... f6 {[%clk 0:00:04.5]} 60. Qd5+ {[%clk 0:00:05.7]} 1-0